[Event "53rd Indian Junior Open-ch 2024"]
[Site "Karnal"]
[Date "2024.09.22"]
[Round "9.8"]
[White "Vyom Malhotra"]
[Black "Nagarkatte Vedant"]
[Result "1-0"]
[ECO "C54"]
[WhiteElo "1960"]
[BlackElo "2260"]
[Annotator "RC"]
[PlyCount "118"]
[EventDate "2024.09.16"]
[EventType "swiss"]
[EventCountry "IND"]
[SourceTitle "playchess.com"]
[Source "ChessBase"]
[SourceQuality "1"]
[TimeControl "5400+30"]

1. e4 {[%emt 0:02:21]} e5 {[%emt 0:04:51]} 2. Nf3 {[%emt 1:29:09]} Nc6 {[%emt 0:00:06]} 3. Bc4 {[%emt 0:00:00]} Nf6 {[%emt 0:00:03]} 4. d3 {[%emt 0:00:00]} Bc5 {[%emt 0:00:50]} 5. O-O {[%emt 0:00:00]} d6 {[%emt 0:00:24]} 6. c3 {[%emt 0:00:00]} a5 {[%emt 0:00:16]} 7. Re1 {[%emt 0:00:00]} O-O {[%emt 0:01:28]} 8. h3 {[%emt 0:00:00]} h6 {[%emt 0:00:08]} 9. Nbd2 {[%emt 0:00:00]} Be6 {[%emt 0:00:22]} 10. Bb5 {[%emt 0:00:00]} Ne7 {[%emt 0:03:17]} 11. d4 {[%emt 0:00:00]} Ba7 {[%emt 0:00:36]} 12. Nf1 {[%emt 0:00:00]} Qb8 {[%emt 0:06:19]} 13. Bd3 {[%emt 0:00:00]} c6 {[%emt 0:02:54]} 14. Ng3 {[%emt 0:00:00]} Qc7 {[%emt 0:01:27]} 15. Be3 {[%emt 0:00:00]} Rfd8 {[%emt 0:05:14]} 16. Nh4 {[%emt 0:00:00]} d5 {[%emt 0:25:46]} 17. dxe5 {[%emt 0:00:00]} dxe4 {[%emt 0:16:17]} 18. exf6 {[%emt 0:00:00]} Rxd3 {[%emt 0:00:06]} 19. Qc1 {[%emt 0:00:00]} Rxe3 {[%emt 0:04:35]} 20. Rxe3 {[%emt 0:00:00]} Nd5 {[%emt 0:00:13]} 21. Ngf5 {[%emt 0:00:00]} Bxe3 {[%emt 0:02:09]} 22. Nxe3 {[%emt 0:00:00]} Nxf6 {[%emt 0:00:05]} 23. Nhf5 {[%emt 0:00:00]} Qe5 {[%emt 0:04:28]} 24. Nd4 {[%emt 0:00:00]} Rd8 {[%emt 0:01:00]} 25. Nxe6 {[%emt 0:00:00]} Qxe6 {[%emt 0:00:02]} 26. Qc2 {[%emt 0:00:00]} Rd3 {[%emt 0:00:35]} 27. c4 {[%emt 0:00:00]} Qd6 {[%emt 0:03:12]} 28. Re1 {[%emt 0:00:00]} Rd2 {[%emt 0:07:25]} 29. Qc1 {[%emt 0:00:00]} Qd4 {[%emt 0:01:25]} 30. Rd1 {[%emt 0:01:26]} Rxd1+ {[%emt 0:00:06]} 31. Nxd1 {[%emt 0:00:03]} Nd7 {[%emt 0:00:10]} 32. Nc3 {[%emt 0:01:31]} Qxc4 {[%emt 0:01:36]} 33. Qf4 {[%emt 0:00:10]} Nc5 {[%emt 0:01:16]} 34. Qf5 {[%emt 0:00:58]} Ne6 {[%emt 0:05:13]} 35. Qxa5 {[%emt 0:02:18]} b5 {[%emt 0:01:11]} 36. b3 {[%emt 0:02:04]} Qc5 {[%emt 0:00:05]} 37. Nxe4 {[%emt 0:01:56]} Qc1+ {[%emt 0:00:02]} 38. Kh2 {[%emt 0:00:01]} Qf4+ {[%emt 0:01:05]} 39. Ng3 {[%emt 0:00:08]} h5 {[%emt 0:01:07]} 40. Qa8+ {[%emt 0:00:36]} Nf8 {[%emt 0:00:03]} 41. Kg1 {[%emt 0:01:12]} h4 {[%emt 0:00:50]} 42. Nf1 {[%emt 0:00:04]} Qe4 {[%emt 0:00:11]} 43. a4 {[%emt 0:00:31]} bxa4 {[%emt 0:02:46]} 44. bxa4 {[%emt 0:00:08]} g5 {[%emt 0:00:30]} 45. a5 {[%emt 0:00:28]} g4 {[%emt 0:01:16]} 46. hxg4 {[%emt 0:01:21]} Kg7 {[%emt 0:00:00]} 47. Ne3 {[%emt 0:03:32]} Ne6 {[%emt 0:00:12]} 48. Qe8 {[%emt 0:01:49]} Qb1+ {[%emt 0:00:45]} 49. Kh2 {[%emt 0:00:37]} Kf6 {[%emt 0:00:22]} 50. Qh8+ {[%emt 0:00:57]} Ke7 {[%emt 0:00:25]} 51. Qe5 {[%emt 0:01:30]} Qb4 {[%emt 0:00:33]} 52. a6 {[%emt 0:00:22]} Qb6 {[%emt 0:00:29]} 53. Nf5+ {[%emt 0:00:15]} Ke8 {[%emt 0:00:21]} 54. Nd6+ {[%emt 0:01:10]} Kd7 {[%emt 0:00:06]} 55. Nxf7 {[%emt 0:00:17]} Ke7 {[%emt 0:00:33]} 56. Nd6 {[%emt 0:00:50]} Qxa6 {[%emt 0:00:30]} 57. Nf5+ {[%emt 0:00:06]} Kf7 {[%emt 0:00:01]} 58. g5 {[%emt 0:00:18]} Qa2 {[%emt 0:00:49]} 59. Qf6+ {[%emt 0:00:08]} Ke8 {[%emt 0:00:05]} 1-0

[Event "53rd Indian Junior Open-ch 2024"]
[Site "Karnal"]
[Date "2024.09.22"]
[Round "9.8"]
[White "Shadhursshaan R"]
[Black "Kushal O"]
[Result "*"]
[ECO "C54"]
[WhiteElo "1933"]
[BlackElo "2130"]
[Annotator "RC"]
[PlyCount "22"]
[EventDate "2024.09.16"]
[EventType "swiss"]
[EventCountry "IND"]
[SourceTitle "playchess.com"]
[Source "ChessBase"]
[SourceQuality "1"]
[TimeControl "5400+30"]

1. e4 {[%emt 0:02:21]} e5 {[%emt 0:04:51]} 2. Nf3 {[%emt 1:29:09]} Nc6 {[%emt 0:00:06]} 3. Bc4 {[%emt 0:00:00]} Nf6 {[%emt 0:00:03]} 4. d3 {[%emt 0:00:00]} Bc5 {[%emt 0:00:50]} 5. O-O {[%emt 0:00:00]} d6 {[%emt 0:00:24]} 6. c3 {[%emt 0:00:00]} a5 {[%emt 0:00:16]} 7. Re1 {[%emt 0:00:00]} O-O {[%emt 0:01:28]} 8. h3 {[%emt 0:00:00]} h6 {[%emt 0:00:08]} 9. Nbd2 {[%emt 0:00:00]} Be6 {[%emt 0:00:22]} 10. Bb5 {[%emt 0:00:00]} Ne7 {[%emt 0:03:17]} 11. d4 {[%emt 0:00:00]} Ba7 {[%emt 0:00:36]} *

[Event "53rd Indian Junior Open-ch 2024"]
[Site "Karnal"]
[Date "2024.09.22"]
[Round "9.9"]
[White "Shah Moxit J"]
[Black "Aniruddh Chatterjee"]
[Result "1-0"]
[ECO "D32"]
[WhiteElo "1952"]
[BlackElo "2171"]
[Annotator "RC"]
[PlyCount "67"]
[EventDate "2024.09.16"]
[EventType "swiss"]
[EventCountry "IND"]
[SourceTitle "playchess.com"]
[Source "ChessBase"]
[SourceQuality "1"]
[TimeControl "5400+30"]

1. Nf3 {[%emt 1:31:00]} d5 {[%emt 1:31:00]} 2. c4 {[%emt 0:00:30]} e6 {[%emt 0:00:30]} 3. e3 {[%emt 0:00:30]} c5 4. cxd5 {[%emt 0:00:30]} exd5 {[%emt 0:01:00]} 5. d4 {[%emt 0:00:30]} Nf6 {[%emt 0:00:30]} 6. Be2 {[%emt 0:00:30]} Nc6 {[%emt 0:00:30]} 7. O-O {[%emt 0:00:30]} Bf5 {[%emt 0:00:30]} 8. b3 {[%emt 0:00:30]} Be7 {[%emt 0:00:30]} 9. Bb2 {[%emt 0:00:30]} O-O {[%emt 0:00:30]} 10. Nc3 {[%emt 0:00:30]} Rc8 {[%emt 0:00:30]} 11. dxc5 {[%emt 0:00:30]} Bxc5 {[%emt 0:00:30]} 12. Rc1 {[%emt 0:00:30]} Bb6 {[%emt 0:00:30]} 13. Na4 {[%emt 0:00:30]} Bc7 {[%emt 0:00:30]} 14. Nc5 {[%emt 0:00:30]} b6 {[%emt 0:00:30]} 15. Nd3 {[%emt 0:00:30]} Bb8 {[%emt 0:00:30]} 16. Nf4 {[%emt 0:00:30]} Bxf4 {[%emt 0:00:30]} 17. exf4 {[%emt 0:00:30]} Bg4 {[%emt 0:00:30]} 18. h3 {[%emt 0:00:30]} Bxf3 {[%emt 0:00:30]} 19. Bxf3 {[%emt 0:00:30]} Ne4 {[%emt 0:00:30]} 20. Re1 {[%emt 0:00:30]} f5 {[%emt 0:00:30]} 21. Be2 {[%emt 0:00:30]} d4 {[%emt 0:00:30]} 22. Bb5 {[%emt 0:00:30]} Rf6 {[%emt 0:00:30]} 23. Rc4 {[%emt 0:00:30]} Rd6 {[%emt 0:00:30]} 24. Bxc6 {[%emt 0:00:30]} Rcxc6 {[%emt 0:00:30]} 25. Rxc6 {[%emt 0:00:30]} Rxc6 26. Qxd4 {[%emt 0:00:30]} Qxd4 {[%emt 0:01:00]} 27. Bxd4 {[%emt 0:00:30]} Rc2 {[%emt 0:00:30]} 28. a4 {[%emt 0:00:30]} Rd2 {[%emt 0:00:30]} 29. Be5 {[%emt 0:00:30]} Nxf2 {[%emt 0:00:30]} 30. Rc1 {[%emt 0:00:30]} Nd3 {[%emt 0:00:30]} 31. Rc7 {[%emt 0:00:30]} Nxe5 {[%emt 0:00:30]} 32. fxe5 {[%emt 0:00:30]} Rb2 {[%emt 0:00:30]} 33. e6 {[%emt 0:00:30]} Rxb3 {[%emt 0:00:30]} 34. Rc8# {[%emt 0:00:30]} 1-0

[Event "53rd Indian Junior Open-ch 2024"]
[Site "Karnal"]
[Date "2024.09.22"]
[Round "9.10"]
[White "Kushal O"]
[Black "Vishal Choudary B"]
[Result "1/2-1/2"]
[ECO "B30"]
[WhiteElo "2130"]
[BlackElo "1937"]
[Annotator "RC"]
[PlyCount "209"]
[EventDate "2024.09.16"]
[EventType "swiss"]
[EventCountry "IND"]
[SourceTitle "playchess.com"]
[Source "ChessBase"]
[SourceQuality "1"]
[TimeControl "5400+30"]

1. e4 {[%emt 1:31:00]} c5 2. Nf3 {[%emt 0:00:30]} Nc6 {[%emt 1:31:30]} 3. Bb5 {[%emt 0:00:30]} Nf6 {[%emt 0:00:30]} 4. Nc3 Qc7 {[%emt 0:00:30]} 5. O-O {[%emt 0:01:00]} Nd4 {[%emt 0:00:30]} 6. Re1 {[%emt 0:00:30]} e5 {[%emt 0:00:30]} 7. d3 {[%emt 0:00:30]} h6 {[%emt 0:00:30]} 8. Bc4 {[%emt 0:00:30]} Be7 {[%emt 0:00:30]} 9. Nd2 {[%emt 0:00:30]} O-O {[%emt 0:00:30]} 10. Nf1 {[%emt 0:00:30]} d6 {[%emt 0:00:30]} 11. Ne3 {[%emt 0:00:30]} Be6 {[%emt 0:00:30]} 12. a4 {[%emt 0:00:30]} a6 {[%emt 0:00:30]} 13. Ncd5 {[%emt 0:00:30]} Nxd5 {[%emt 0:00:30]} 14. Nxd5 {[%emt 0:00:30]} Bxd5 {[%emt 0:00:30]} 15. Bxd5 {[%emt 0:00:30]} Bg5 {[%emt 0:00:30]} 16. Bxg5 {[%emt 0:00:30]} hxg5 {[%emt 0:00:30]} 17. c3 {[%emt 0:00:30]} Ne6 {[%emt 0:00:30]} 18. Qh5 {[%emt 0:00:30]} Qe7 {[%emt 0:00:30]} 19. g3 {[%emt 0:00:30]} Nc7 {[%emt 0:00:30]} 20. Ba2 {[%emt 0:00:30]} Qf6 {[%emt 0:00:30]} 21. Kg2 {[%emt 0:00:30]} g6 {[%emt 0:00:30]} 22. Qh6 {[%emt 0:00:30]} Ne6 {[%emt 0:00:30]} 23. a5 {[%emt 0:00:30]} g4 {[%emt 0:00:30]} 24. Bb3 {[%emt 0:00:30]} Rab8 {[%emt 0:00:30]} 25. Bd1 {[%emt 0:00:30]} b6 {[%emt 0:00:30]} 26. Qd2 bxa5 {[%emt 0:00:30]} 27. Rxa5 {[%emt 0:01:00]} Qd8 {[%emt 0:00:30]} 28. Rxa6 {[%emt 0:00:30]} f5 {[%emt 0:00:30]} 29. Qh6 {[%emt 0:00:30]} Qf6 {[%emt 0:00:30]} 30. Ra7 {[%emt 0:00:30]} Rf7 {[%emt 0:00:30]} 31. Rxf7 {[%emt 0:00:30]} Qxf7 {[%emt 0:00:30]} 32. exf5 {[%emt 0:00:30]} Qxf5 {[%emt 0:00:30]} 33. Re4 {[%emt 0:00:30]} Rxb2 {[%emt 0:00:30]} 34. Qe3 {[%emt 0:00:30]} Nc7 {[%emt 0:00:30]} 35. Bxg4 {[%emt 0:00:30]} Nd5 {[%emt 0:00:30]} 36. Qe1 {[%emt 0:00:30]} Qf7 {[%emt 0:00:30]} 37. Re2 {[%emt 0:00:30]} Rb3 {[%emt 0:00:30]} 38. Rc2 {[%emt 0:00:30]} Nf6 {[%emt 0:00:30]} 39. Bf3 {[%emt 0:00:30]} c4 {[%emt 0:00:30]} 40. dxc4 {[%emt 0:00:30]} Qxc4 {[%emt 0:00:30]} 41. Qd2 {[%emt 0:00:30]} e4 {[%emt 0:00:30]} 42. Be2 {[%emt 0:00:30]} Qc5 {[%emt 0:00:30]} 43. Qf4 {[%emt 0:00:30]} Kg7 {[%emt 0:00:30]} 44. Rd2 {[%emt 0:00:30]} d5 {[%emt 0:00:30]} 45. Qe5 {[%emt 0:00:30]} Rxc3 {[%emt 0:00:30]} 46. Rxd5 {[%emt 0:00:30]} Rxg3+ {[%emt 0:00:30]} 47. hxg3 {[%emt 0:00:30]} Qxd5 {[%emt 0:00:30]} 48. Qe7+ {[%emt 0:00:30]} Qf7 {[%emt 0:00:30]} 49. Qe5 {[%emt 0:00:30]} Qd5 {[%emt 0:00:30]} 50. Qc7+ {[%emt 0:00:30]} Qf7 {[%emt 0:00:30]} 51. Qf4 {[%emt 0:00:30]} Qd5 {[%emt 0:00:30]} 52. Kg1 {[%emt 0:00:30]} Qa2 {[%emt 0:00:30]} 53. Qc7+ {[%emt 0:00:30]} Qf7 {[%emt 0:00:30]} 54. Qf4 {[%emt 0:00:30]} Qa2 {[%emt 0:00:30]} 55. Qc7+ {[%emt 0:00:30]} Qf7 {[%emt 0:00:30]} 56. Qc3 {[%emt 0:00:30]} Qd5 {[%emt 0:00:30]} 57. Kh2 {[%emt 0:00:30]} Qa2 {[%emt 0:00:30]} 58. Qe3 {[%emt 0:00:30]} Qe6 {[%emt 0:00:30]} 59. Kg1 {[%emt 0:00:30]} Qd5 {[%emt 0:00:30]} 60. Qc3 {[%emt 0:00:30]} Qe6 {[%emt 0:00:30]} 61. Bc4 {[%emt 0:00:30]} Qf5 {[%emt 0:00:30]} 62. Qd4 {[%emt 0:00:30]} Qd7 {[%emt 0:00:30]} 63. Qc3 {[%emt 0:00:30]} Qf5 {[%emt 0:00:30]} 64. Bb3 {[%emt 0:00:30]} Qd7 {[%emt 0:00:30]} 65. Qe5 {[%emt 0:00:30]} Qf5 {[%emt 0:00:30]} 66. Qe7+ {[%emt 0:00:30]} Kh8 {[%emt 0:00:30]} 67. Qf8+ {[%emt 0:00:30]} Kh7 {[%emt 0:00:30]} 68. Qe7+ {[%emt 0:00:30]} Kh8 {[%emt 0:00:30]} 69. Bf7 {[%emt 0:00:30]} e3 {[%emt 0:00:30]} 70. Qxe3 {[%emt 0:00:30]} Qb1+ {[%emt 0:00:30]} 71. Kg2 {[%emt 0:00:30]} Qb7+ {[%emt 0:00:30]} 72. Kg1 {[%emt 0:00:30]} Qxf7 {[%emt 0:00:30]} 73. Qh6+ {[%emt 0:00:30]} Kg8 {[%emt 0:00:30]} 74. Qg5 {[%emt 0:00:30]} Kg7 {[%emt 0:00:30]} 75. Qe5 {[%emt 0:00:30]} Qd7 {[%emt 0:00:30]} 76. Qc3 {[%emt 0:00:30]} Qf5 {[%emt 0:00:30]} 77. Qc7+ {[%emt 0:00:30]} Kh6 {[%emt 0:00:30]} 78. Qd8 {[%emt 0:00:30]} g5 {[%emt 0:00:30]} 79. Qh8+ {[%emt 0:00:30]} Kg6 {[%emt 0:00:30]} 80. Qf8 {[%emt 0:00:30]} g4 {[%emt 0:00:30]} 81. Qb4 {[%emt 0:00:30]} Qf3 {[%emt 0:00:30]} 82. Qb6 {[%emt 0:00:30]} Kg5 {[%emt 0:00:30]} 83. Qc5+ {[%emt 0:00:30]} Qf5 {[%emt 0:00:30]} 84. Qc1+ Kh5 {[%emt 0:00:30]} 85. Qb2 {[%emt 0:01:00]} Nh7 {[%emt 0:00:30]} 86. Qh8 {[%emt 0:00:30]} Kh6 {[%emt 0:00:30]} 87. Kg2 {[%emt 0:00:30]} Qf7 {[%emt 0:00:30]} 88. Kf1 {[%emt 0:00:30]} Kg6 {[%emt 0:00:30]} 89. Qc8 {[%emt 0:00:30]} Qf5 {[%emt 0:00:30]} 90. Qg8+ {[%emt 0:00:30]} Kf6 {[%emt 0:00:30]} 91. Qh8+ {[%emt 0:00:30]} Kf7 {[%emt 0:00:30]} 92. Kg2 {[%emt 0:00:30]} Ng5 {[%emt 0:00:30]} 93. Qh5+ {[%emt 0:00:30]} Kg7 {[%emt 0:00:30]} 94. Qe8 {[%emt 0:00:30]} Qf3+ {[%emt 0:00:30]} 95. Kf1 {[%emt 0:00:30]} Ne4 {[%emt 0:00:30]} 96. Qe7+ {[%emt 0:00:30]} Kg6 {[%emt 0:00:30]} 97. Qe6+ {[%emt 0:00:30]} Kg5 {[%emt 0:00:30]} 98. Qe7+ {[%emt 0:00:30]} Nf6 {[%emt 0:00:30]} 99. Kg1 {[%emt 0:00:30]} Kg6 {[%emt 0:00:30]} 100. Qe6 {[%emt 0:00:30]} Qe4 {[%emt 0:00:30]} 101. Qd6 {[%emt 0:00:30]} Kg5 {[%emt 0:00:30]} 102. Qc5+ {[%emt 0:00:30]} Kg6 {[%emt 0:00:30]} 103. Qd6 {[%emt 0:00:30]} Kf7 {[%emt 0:00:30]} 104. Qc7+ {[%emt 0:00:30]} Ke6 {[%emt 0:00:30]} 105. Qb6+ {[%emt 0:00:30]} 1/2-1/2

[Event "53rd Indian Junior Open-ch 2024"]
[Site "Karnal"]
[Date "2024.09.23"]
[Round "10.1"]
[White "Adireddy Arjun"]
[Black "Alekhya Mukhopadhyay"]
[Result "1-0"]
[ECO "B48"]
[WhiteElo "2343"]
[BlackElo "2094"]
[Annotator "RC"]
[PlyCount "91"]
[EventDate "2024.09.16"]
[EventType "swiss"]
[EventCountry "IND"]
[SourceTitle "playchess.com"]
[Source "ChessBase"]
[SourceQuality "1"]
[TimeControl "5400+30"]

1. e4 {[%emt 0:00:15]} c5 {[%emt 0:00:12]} 2. Nf3 {[%emt 0:00:07]} e6 {[%emt 0:00:16]} 3. d4 {[%emt 0:00:06]} cxd4 {[%emt 0:00:06]} 4. Nxd4 {[%emt 0:00:05]} Nc6 {[%emt 0:00:09]} 5. Nc3 {[%emt 0:00:09]} Qc7 {[%emt 0:00:09]} 6. Be3 {[%emt 0:00:05]} a6 {[%emt 0:00:19]} 7. Qd2 {[%emt 0:00:29]} Nf6 {[%emt 0:00:39]} 8. f3 {[%emt 0:00:07]} Be7 {[%emt 0:00:21]} 9. O-O-O {[%emt 0:00:41]} b5 {[%emt 0:01:09]} 10. g4 {[%emt 0:00:06]} Nxd4 {[%emt 0:01:13]} 11. Bxd4 {[%emt 0:00:07]} Bb7 {[%emt 0:00:27]} 12. h4 {[%emt 0:00:09]} Rc8 {[%emt 0:01:09]} 13. Kb1 {[%emt 0:05:58]} O-O {[%emt 0:15:51]} 14. Bd3 {[%emt 0:21:57]} e5 {[%emt 0:03:22]} 15. Bf2 {[%emt 0:18:42]} b4 {[%emt 0:01:38]} 16. Na4 {[%emt 0:01:48]} d5 {[%emt 0:01:12]} 17. Qe2 {[%emt 0:07:52]} dxe4 {[%emt 0:10:58]} 18. fxe4 {[%emt 0:00:52]} Nd7 {[%emt 0:00:53]} 19. b3 {[%emt 0:08:09]} a5 {[%emt 0:28:14]} 20. Bb5 {[%emt 0:13:12]} Nf6 {[%emt 0:02:58]} 21. Bd3 {[%emt 0:00:05]} Nd7 {[%emt 0:01:20]} 22. Bb5 {[%emt 0:09:19]} Nf6 {[%emt 0:00:07]} 23. g5 {[%emt 0:00:08]} Nxe4 {[%emt 0:14:46]} 24. Rd7 {[%emt 0:00:01]} Qb8 {[%emt 0:00:17]} 25. Rxe7 {[%emt 0:00:46]} Nxf2 {[%emt 0:00:11]} 26. Re1 {[%emt 0:01:08]} Nh3 {[%emt 0:11:39]} 27. Qxe5 {[%emt 0:01:54]} Qxe5 {[%emt 0:01:25]} 28. R1xe5 {[%emt 0:00:02]} Bc6 {[%emt 0:00:29]} 29. Nb6 {[%emt 0:02:00]} Rb8 {[%emt 0:00:46]} 30. Bxc6 {[%emt 0:00:02]} Rxb6 {[%emt 0:00:04]} 31. Bd5 {[%emt 0:00:01]} Nf4 {[%emt 0:01:04]} 32. Rxf7 {[%emt 0:00:15]} Nxd5 {[%emt 0:00:06]} 33. Rxf8+ {[%emt 0:00:01]} Kxf8 {[%emt 0:00:20]} 34. Rxd5 {[%emt 0:00:03]} Ra6 {[%emt 0:00:28]} 35. Rb5 {[%emt 0:03:44]} h6 {[%emt 0:01:28]} 36. gxh6 {[%emt 0:01:45]} Rxh6 {[%emt 0:00:38]} 37. h5 {[%emt 0:00:06]} Ra6 {[%emt 0:00:07]} 38. Kb2 {[%emt 0:00:16]} Ke7 {[%emt 0:02:20]} 39. a3 {[%emt 0:00:06]} Kf6 {[%emt 0:00:33]} 40. axb4 {[%emt 0:01:08]} axb4 {[%emt 0:00:06]} 41. Rxb4 {[%emt 0:00:04]} Ra5 {[%emt 0:00:13]} 42. Rh4 {[%emt 0:00:50]} Kg5 {[%emt 0:00:20]} 43. Rh1 {[%emt 0:00:21]} Kf4 {[%emt 0:00:23]} 44. h6 {[%emt 0:00:56]} gxh6 {[%emt 0:00:31]} 45. Rxh6 {[%emt 0:00:02]} Rd5 {[%emt 0:00:32]} 46. Re6 {[%emt 0:00:08]} 1-0

[Event "53rd Indian Junior Open-ch 2024"]
[Site "Karnal"]
[Date "2024.09.23"]
[Round "10.2"]
[White "Sourath Biswas"]
[Black "Bhattacharyya Soham"]
[Result "1/2-1/2"]
[ECO "A48"]
[WhiteElo "2305"]
[BlackElo "2425"]
[Annotator "TA"]
[PlyCount "121"]
[EventDate "2024.09.16"]
[EventType "swiss"]
[EventCountry "IND"]
[SourceTitle "playchess.com"]
[Source "ChessBase"]
[SourceQuality "1"]
[TimeControl "5400+30"]

{[%evp 27,121,-29,0,0,0,0,0,0,0,0,0,0,43,27,33,18,23,30,21,27,28,0,143,134,131,128,208,0,0,0,0,4,71,11,10,-17,-15,-58,-50,-56,-53,-83,-45,-44,-33,-47,0,0,8,8,8,8,83,84,84,8,8,0,0,0,0,0,0,0,0,0,0,0,0,0,0,0,0,-4,0,0,0,0,0,0,0,0,0,0,0,0,0,0,0,0,0,0,0,0,0,0]} 1. d4 {[%emt 0:00:03]} Nf6 {[%emt 0:00:32]} 2. Nf3 {[%emt 0:00:10]} g6 {[%emt 0:00:08]} 3. Nbd2 {[%emt 0:00:03]} Bg7 {[%emt 0:00:30]} 4. e3 {[%emt 0:00:07]} O-O {[%emt 0:00:08]} 5. b4 {[%emt 0:00:02]} d6 {[%emt 0:02:17]} 6. Be2 {[%emt 0:00:29] A48: 1 d4 Nf6 2 Nf3 g6: Torre, London and Colle Systems.} Nd5 $146 {[%emt 0:05:48]} ({Predecessor:} 6... c5 7. bxc5 dxc5 8. c3 b6 9. O-O Bb7 10. a4 Nbd7 11. a5 Qc7 12. Ba3 e5 {0-1 Martinez Romero,M (2462)-Almeida Quintana,O (2517) Bogota Univ Blitz op 9th 2015 (6.1)}) 7. c4 {[%emt 0:03:10]} Nxb4 {[%emt 0:03:14]} 8. Qb3 {[%emt 0:00:19]} c5 {[%emt 0:01:53]} 9. Bb2 {[%emt 0:03:22]} a5 {[%emt 0:09:08]} 10. dxc5 {[%emt 0:03:51]} Bxb2 {[%emt 0:00:48]} 11. Qxb2 {[%emt 0:00:05]} dxc5 {[%emt 0:00:04]} 12. O-O {[%emt 0:04:51]} b6 {[%emt 0:02:10]} 13. Rab1 {[%emt 0:00:51]} Nd7 {[%emt 0:00:52]} 14. h4 {[%emt 0:00:17]} h5 {[%emt 0:06:41]} (14... Bb7 {feels hotter.} 15. Ng5 Rb8 16. Rfd1 Qc7) 15. a3 {[%emt 0:01:56]} Nc6 {[%emt 0:00:13]} 16. Ne4 {[%emt 0:00:33]} Rb8 {[%emt 0:04:49]} 17. Rfd1 {[%emt 0:00:40]} Qc7 {[%emt 0:02:13]} 18. Nc3 {[%emt 0:03:20]} Nf6 {[%emt 0:04:52]} 19. Nd5 {[%emt 0:00:58]} Nxd5 {[%emt 0:00:08]} (19... Qd6 $5) 20. cxd5 {[%emt 0:00:03]} Na7 {[%emt 0:00:15]} 21. Ng5 {[%emt 0:00:09]} (21. e4 {simplifies} Bd7 22. e5 Bf5 23. Qc1) 21... f6 $1 {[%emt 0:05:04]} 22. Ne6 {[%emt 0:30:21]} Bxe6 {[%emt 0:00:07]} 23. dxe6 {[%emt 0:00:03]} Nc8 {[%emt 0:02:32]} 24. Rd7 {[%emt 0:07:06]} Qc6 {[%emt 0:00:06]} (24... Qe5 $11) 25. Bf3 $1 $16 {[%emt 0:02:33]} Qa4 {[%emt 0:00:06]} (25... Qxe6 $2 26. Bd5 $18) 26. g3 {[%emt 0:02:20]} Kg7 {[%emt 0:08:42]} (26... b5 $16) 27. Rc7 $2 {[%emt 0:06:14]} (27. Rc1 $1 $18 {[%cal Rc1c5]}) 27... Qc4 $11 {[%emt 0:03:09]} 28. Rc1 {[%emt 0:01:42]} Qxe6 {[%emt 0:00:23]} 29. R1xc5 {[%emt 0:00:05]} Rd8 {[%emt 0:07:55] [#]} (29... Nd6 $11 30. R5c6 Rfc8) 30. R5c6 {[%emt 0:04:14]} (30. Rg5 $1 $16) 30... Rd6 $11 {[%emt 0:00:59]} 31. Qc3 {[%emt 0:00:06]} Rxc6 {[%emt 0:00:23]} 32. Rxc6 {[%emt 0:00:31]} Nd6 {[%emt 0:00:58]} 33. Qd4 {[%emt 0:00:39]} Qe5 {[%emt 0:04:26]} 34. Qa4 {[%emt 0:04:10]} Nf5 {[%emt 0:05:39]} 35. Kg2 {[%emt 0:00:47]} Rd8 {[%emt 0:01:02]} 36. Qc2 {[%emt 0:05:28]} (36. Rxb6 Nxe3+ (36... Rd2 $2 37. Qf4 $19) 37. Kh2 Rd2 $19) 36... b5 {[%emt 0:03:43]} (36... a4 $1 $15 {is more appropriate.}) 37. Rc5 $11 {[%emt 0:01:45]} Rd2 {[%emt 0:01:40]} 38. Qxd2 {[%emt 0:00:56]} Qxc5 {[%emt 0:00:04]} 39. Qxa5 {[%emt 0:00:06]} Qc2 {[%emt 0:06:34]} (39... Nd6 $11 {remains equal.}) 40. Qa7 $16 {[%emt 0:00:05]} Kf8 {[%emt 0:02:19] [#]} 41. Qa8+ {[%emt 0:02:24]} ({But not} 41. e4 $6 Nd6 $11) (41. Qb8+ $1 $16 Kg7 42. Qa7 (42. Qxb5 Nxe3+ 43. Kg1 Ng4 $16)) 41... Kg7 $11 {[%emt 0:00:07]} 42. Be4 {[%emt 0:00:28]} Nxe3+ {[%emt 0:02:17]} 43. Kf3 $1 {[%emt 0:00:05]} Qc1 {[%emt 0:00:04]} 44. Qe8 {[%emt 0:01:26]} (44. fxe3 $2 Qf1#) 44... Nf5 {[%emt 0:00:07]} 45. Kg2 {[%emt 0:02:29]} Qxa3 {[%emt 0:00:23]} 46. Bxf5 $1 {[%emt 0:01:51]} gxf5 {[%emt 0:00:01]} 47. Qxb5 {[%emt 0:00:07]} Qa8+ {[%emt 0:00:13]} 48. Kg1 {[%emt 0:00:06]} Qa1+ {[%emt 0:00:58]} 49. Kg2 {[%emt 0:00:12]} Qe5 {[%emt 0:00:15]} 50. Qe8 {[%emt 0:00:18]} Qe4+ {[%emt 0:00:18]} 51. Kg1 {[%emt 0:00:14]} Qe2 {[%emt 0:00:26]} 52. Kg2 {[%emt 0:00:03]} f4 {[%emt 0:01:59]} 53. gxf4 {[%emt 0:00:03]} Qg4+ {[%emt 0:00:03]} 54. Kf1 {[%emt 0:00:14]} Qd1+ {[%emt 0:00:04]} 55. Kg2 {[%emt 0:00:03]} Qg4+ {[%emt 0:00:02]} 56. Kf1 {[%emt 0:00:08]} e6 {[%emt 0:01:38]} 57. f5 {[%emt 0:00:07]} Qc4+ {[%emt 0:01:40]} 58. Kg1 {[%emt 0:01:06]} Qg4+ {[%emt 0:01:21]} 59. Kf1 {[%emt 0:00:04]} Qc4+ {[%emt 0:00:17]} 60. Kg1 {[%emt 0:00:07]} Qg4+ {[%emt 0:01:09]} 61. Kf1 {[%emt 0:00:08]} 1/2-1/2